fUSD/lending_fUSD_20241018
["ID","MTS","AMOUNT","RATE_DAILY","PERIOD"]
[340474672,1729288256318,-283.64196169,0.00024931,2]
[340474673,1729288256327,-1321.70984207,0.00024931,2]
[340474674,1729288256338,-766.69689252,0.00024931,2]
[340474675,1729288256349,-412.26326541,0.00024931,2]
[340474676,1729288256359,-500.0,0.00024931,2]
[340474677,1729288256368,-500.0,0.00024931,2]
[340474678,1729288256377,-186.05102258,0.00024931,2]
[340474679,1729288256389,-473.08897742,0.00024931,2]
[340474680,1729288256398,-262.80702258,0.00024931,2]
[340474681,1729288256409,-1933.78297742,0.00024931,2]
[340474682,1729288256419,-467.10319106,0.00024931,2]
[340474683,1729288256430,-424.3875,0.00024931,2]
[340474684,1729288256441,-1202.82442801,0.00024931,2]
[340474685,1729288256718,-1403.65876187,0.00022928,2]
[340474686,1729288256727,-406.35488093,0.00024931,2]
[340474687,1729288256736,-384.14153593,0.00024931,2]
[340474688,1729288256748,-115.85846407,0.00024931,2]
[340474689,1729288256757,-226.50367393,0.00024931,2]
[340474690,1729288256767,-273.49632607,0.00024931,2]
[340474691,1729288256776,-659.14,0.00024931,2]
[340474692,1729288256785,-2196.59,0.00024931,2]
[340474693,1729288256794,-2500.67,0.00024931,2]
[340474694,1729288256803,-370.10367346,0.00024931,2]
[340474695,1729288256814,-129.89632654,0.00024931,2]
[340474696,1729288256822,-302.11270232,0.00024931,2]
[340474697,1729288256833,-357.02729768,0.00024931,2]
[340474698,1729288256843,-2196.59,0.00024931,2]
[340474699,1729288256852,-2500.67,0.00024931,2]
[340474700,1729288256861,-8.33560577,0.00024931,2]
[340474701,1729288256875,-393.6201291,0.00024931,2]
[340474714,1729289432047,-157.07,0.00010959,2]
[340474715,1729289432056,-157.07,0.00018836,2]
[340474716,1729289432066,-300.0,0.00019725,2]
[340474717,1729289432075,-284.0,0.00021484,2]
[340474718,1729289432085,-245.89705431,0.00021734,2]
[340474719,1729289432097,-700.0,0.00021734,2]
[340474720,1729289432187,-73.27195293,0.00021734,2]
[340474721,1729289432199,-1260.5,0.00021734,2]
[340474722,1729289432209,-499.99,0.00022913,2]
[340474723,1729289432218,-1907.67339719,0.00022913,2]
[340474724,1729289432229,-1391.38550581,0.00022913,2]
[340474725,1729289432240,-150.188,0.00023028,2]
[340474726,1729289432250,-202.206,0.00023028,2]
[340474727,1729289432259,-201.673,0.00023028,2]
[340474728,1729289432268,-3000.0,0.000236,2]
[340474729,1729289432277,-2404.50868982,0.000236,2]
[340474730,1729289432288,-1238.62357742,0.000236,2]
[340474731,1729289432299,-20256.86773276,0.000236,2]
[340474732,1729289432308,-250.0,0.00023601,2]
[340474733,1729289432317,-250.0,0.00023601,2]
[340474734,1729289432326,-250.0,0.00023609,2]
[340474735,1729289432335,-159.18,0.00023635,2]
[340474736,1729289432344,-229.04,0.00023763,2]
[340474738,1729289432354,-169.66,0.00023782,2]
[340474739,1729289432362,-1000.0,0.00023797,2]
[340474740,1729289432371,-1260.5,0.00023998,2]
[340474741,1729289432380,-866.49505081,0.00024564,4]
[340474742,1729289432389,-500.0,0.00024658,7]
[340474743,1729289432398,-150.0,0.00024658,2]
[340474744,1729289432411,-150.0,0.0002466,2]
[340474745,1729289432420,-1500.0,0.00024663,2]
[340474746,1729289432429,-1500.0,0.00024663,2]
[340474747,1729289432438,-150.0,0.00024664,2]
[340474748,1729289432447,-150.0,0.00024671,2]
[340474749,1729289432456,-150.0,0.00024674,2]
[340474750,1729289432465,-150.0,0.00024676,2]
[340474751,1729289432474,-1500.0,0.00024677,2]
[340474752,1729289432483,-150.0,0.0002468,2]
[340474753,1729289432492,-150.0,0.00024682,2]
[340474754,1729289432502,-150.0,0.00024684,2]
[340474755,1729289432510,-150.0,0.00024684,2]
[340474756,1729289432519,-150.0,0.00024686,2]
[340474757,1729289432528,-150.0,0.00024686,2]
[340474758,1729289432537,-500.0,0.00024686,2]
[340474759,1729289432546,-150.0,0.00024686,2]
[340474760,1729289432555,-500.0,0.00024686,2]
[340474761,1729289432565,-500.0,0.00024686,2]
[340474762,1729289432574,-464.0,0.00024686,2]
[340474763,1729289432583,-150.0,0.00024686,2]
[340474764,1729289432592,-150.0,0.00024698,2]
[340474765,1729289432601,-150.0,0.00024705,2]
[340474766,1729289432611,-150.0,0.00024706,2]
[340474767,1729289432620,-150.0,0.00024707,2]
[340474768,1729289432629,-150.0,0.00024718,2]
[340474769,1729289432638,-150.0,0.00024719,2]
[340474770,1729289432647,-150.0,0.00024722,2]
[340474771,1729289432656,-150.0,0.00024723,2]
[340474772,1729289432666,-150.0,0.00024729,2]
[340474773,1729289432675,-150.0,0.0002473,2]
[340474774,1729289432684,-41.94354975,0.00024731,2]
[340474775,1729289432695,-108.05645025,0.00024731,2]
[340474776,1729289432704,-150.0,0.00024733,2]
[340474777,1729289432714,-41.94354975,0.00024737,2]
[340474778,1729289432727,-108.05645025,0.00024737,2]
[340474779,1729289432737,-150.0,0.00024745,2]
[340474780,1729289432747,-150.0,0.00024745,2]
[340474781,1729289432756,-41.26243622,0.00024745,2]
[340474782,1729289432779,-108.73756378,0.00024745,2]
[340474783,1729289432789,-150.0,0.00024755,2]
[340474784,1729289432800,-1500.0,0.00024757,2]
[340474785,1729289432809,-150.0,0.00024762,2]
[340474786,1729289432819,-150.0,0.00024763,2]
[340474787,1729289432829,-1500.0,0.00024763,2]
[340474788,1729289432838,-150.0,0.00024764,2]
[340474789,1729289432847,-1500.0,0.00024765,2]
[340474790,1729289432857,-1500.0,0.00024766,2]
[340474791,1729289432868,-150.0,0.00024767,2]
[340474792,1729289432878,-150.0,0.00024769,2]
[340474793,1729289432888,-150.0,0.00024769,2]
[340474794,1729289432898,-150.0,0.00024772,2]
[340474795,1729289432908,-150.0,0.00024774,2]
[340474796,1729289432917,-150.0,0.0002478,2]
[340474797,1729289432927,-150.0,0.00024781,2]
[340474798,1729289432936,-150.0,0.00024787,2]
[340474799,1729289432947,-150.0,0.0002479,2]
[340474800,1729289432956,-150.0,0.00024793,2]
[340474801,1729289432965,-150.0,0.00024796,2]
[340474802,1729289432975,-150.0,0.00024797,2]
[340474803,1729289432984,-150.0,0.00024799,2]
[340474804,1729289432993,-1500.0,0.00024802,2]
[340474805,1729289433002,-1500.0,0.00024802,2]
[340474806,1729289433012,-150.0,0.00024802,2]
[340474807,1729289433021,-150.0,0.00024805,2]
[340474808,1729289433030,-150.0,0.00024806,2]
[340474809,1729289433040,-150.0,0.00024808,2]
[340474810,1729289433049,-150.0,0.00024809,2]
[340474811,1729289433058,-150.0,0.0002481,2]
[340474812,1729289433068,-4545.16243622,0.00024811,2]
[340474819,1729289438123,-228.72,0.00024119,30]
[340474820,1729289438133,-1341.53336378,0.00024811,2]
[340474821,1729289438142,-150.0,0.00024811,2]
[340474822,1729289438152,-150.0,0.0002482,2]
[340474823,1729289438161,-150.0,0.0002482,2]
[340474824,1729289438171,-150.0,0.0002482,2]
[340474825,1729289438180,-497.04976551,0.00024821,2]
[340474826,1729289438260,-502.95023449,0.00024821,2]
[340474827,1729289438270,-239.16606465,0.00024821,2]
[340474828,1729289438280,-277.0527081,0.00024821,2]
[340474829,1729289438292,-5303.35094036,0.00024821,2]
[340474830,1729289438466,-1680.43028689,0.00024821,2]
[340474831,1729289438476,-247.8203,0.00024821,2]
[340474832,1729289438485,-534.166,0.00024821,8]
[340474833,1729289438495,-169.525,0.00024821,8]
[340474834,1729289438505,-150.0,0.00024822,2]
[340474835,1729289438514,-150.0,0.00024829,2]
[340474836,1729289438524,-150.0,0.0002483,2]
[340474837,1729289438533,-176.14466607,0.00024831,2]
[340474838,1729289438543,-300.0,0.00024834,2]
[340474839,1729289438553,-150.0,0.00024837,2]
[340474840,1729289438562,-150.0,0.00024843,2]
[340474841,1729289438572,-150.0,0.00024859,2]
[340474842,1729289438581,-160.32,0.00024863,3]
[340474843,1729289438590,-481.01,0.00024863,3]
[340474844,1729289438600,-150.0,0.00024868,2]
[340474845,1729289438610,-150.0,0.00024869,2]
[340474846,1729289438619,-150.0,0.00024873,2]
[340474847,1729289438629,-2131.81875448,0.00024874,2]
[340474867,1729289440109,-150.0,0.00024877,2]
[340474868,1729289440118,-2740.07664241,0.00024882,2]
[340474869,1729289440128,-150.0,0.00024884,2]
[340474870,1729289440137,-150.0,0.00024886,2]
[340474871,1729289440146,-150.0,0.00024887,2]
[340474872,1729289440156,-150.0,0.00024887,2]
[340474873,1729289440167,-150.0,0.00024888,2]
[340474874,1729289440176,-150.0,0.0002489,2]
[340474875,1729289440185,-2740.07664241,0.00024891,2]
[340474876,1729289440194,-150.0,0.00024893,2]
[340474877,1729289440204,-150.0,0.00024898,2]
[340474878,1729289440213,-188.01643322,0.00024899,2]
[340474879,1729289440222,-186.0174522,0.00024899,2]
[340474880,1729289440231,-188.01643322,0.000249,2]
[340474881,1729289440241,-150.0,0.000249,2]
[340474882,1729289440250,-152.71,0.000249,31]
[340474883,1729289440259,-152.71,0.000249,31]
[340474884,1729289440268,-152.71,0.000249,31]
[340474885,1729289440277,-152.71,0.000249,31]
[340474886,1729289440286,-152.71,0.000249,31]
[340474887,1729289440295,-152.71,0.000249,31]
[340474888,1729289440304,-909.6214,0.000249,2]
[340474889,1729289440313,-2740.07664241,0.000249,2]
[340474890,1729289440322,-188.01643322,0.000249,2]
[340474891,1729289440331,-150.0,0.00024902,2]
[340474892,1729289440340,-150.0,0.00024902,2]
[340474893,1729289440349,-150.0,0.00024904,2]
[340474894,1729289440358,-150.0,0.00024909,2]
[340474895,1729289440367,-645.0,0.0002491,2]
[340474896,1729289440376,-72531.20976601,0.00024911,5]
[340474897,1729289440392,-22974.41631229,0.00024911,5]
[340474898,1729289440400,-32663.1943852,0.00024911,5]
[340474899,1729289440412,-150.011906,0.00024911,6]
[340474900,1729289440421,-150.011906,0.00024911,5]
[340474901,1729289440431,-150.011906,0.00024911,4]
[340474902,1729289440441,-150.011906,0.00024911,3]
[340474903,1729289440451,-150.011906,0.00024911,2]
[340474904,1729289440464,-150.011906,0.00024912,2]
[340474905,1729289440474,-150.011906,0.00024912,3]
[340474906,1729289440483,-150.011906,0.00024912,4]
[340474907,1729289440495,-150.011906,0.00024912,5]
[340474908,1729289440507,-150.011906,0.00024912,6]
[340474909,1729289440518,-150.011906,0.00024913,6]
[340474910,1729289440528,-150.011906,0.00024913,5]
[340474911,1729289440539,-150.011906,0.00024913,4]
[340474912,1729289440549,-150.011906,0.00024913,3]
[340474913,1729289440558,-150.011906,0.00024913,2]
[340474914,1729289440570,-150.011906,0.00024914,2]
[340474915,1729289440580,-150.011906,0.00024914,3]
[340474916,1729289440589,-150.011906,0.00024914,4]
[340474917,1729289440599,-150.011906,0.00024914,5]
[340474918,1729289440608,-150.011906,0.00024914,6]
[340474919,1729289440618,-150.011906,0.00024915,6]
[340474920,1729289440627,-150.011906,0.00024915,5]
[340474921,1729289440636,-150.011906,0.00024915,4]
[340474922,1729289440646,-150.011906,0.00024915,3]
[340474923,1729289440655,-150.011906,0.00024915,2]
[340474924,1729289440665,-150.011906,0.00024916,2]
[340474925,1729289440674,-150.011906,0.00024916,3]
[340474926,1729289440683,-150.011906,0.00024916,4]
[340474927,1729289440694,-150.011906,0.00024916,5]
[340474928,1729289440703,-150.011906,0.00024916,6]
[340474929,1729289440713,-209.011906,0.00024916,6]
[340474930,1729289440722,-5443.86573086,0.00024916,5]
[340474931,1729289440731,-150.011906,0.00024917,5]
[340474932,1729289440740,-150.011906,0.00024917,4]
[340474933,1729289440750,-150.011906,0.00024917,3]
[340474934,1729289440759,-150.011906,0.00024917,2]
[340474935,1729289440768,-150.011906,0.00024917,5]
[340474936,1729289440778,-150.011906,0.00024917,6]
[340474937,1729289440787,-150.011906,0.00024918,2]
[340474938,1729289440797,-150.011906,0.00024918,3]
[340474939,1729289440806,-150.011906,0.00024918,4]
[340474940,1729289440815,-150.011906,0.00024918,5]
[340474941,1729289440824,-150.011906,0.00024918,6]
[340474942,1729289440834,-150.011906,0.00024918,5]
[340474943,1729289440843,-150.0,0.0002492,2]
[340474944,1729289440852,-96415.24177059,0.00024921,5]
[340474945,1729289440865,-1200.0,0.00024921,5]
[340474946,1729289440876,-399.9,0.00024921,5]
[340474947,1729289440887,-2292.97290464,0.00024921,5]
[340474948,1729289440898,-1281.74521,0.00024921,5]
[340474949,1729289440909,-968.23212509,0.00024921,5]
[340474951,1729289443090,-720.70825157,0.00024921,5]
[340474952,1729289443103,-12871.86637562,0.00024921,5]
[340474953,1729289443240,-39780.91740371,0.00024921,5]
[340474954,1729289443251,-8262.01966631,0.00024921,5]
[340474955,1729289443317,-4342.00319205,0.00024921,5]
[340474956,1729289443331,-526.83208673,0.00024921,5]
[340474957,1729289443342,-802.06340159,0.00024921,5]
[340474958,1729289443355,-3793.14132406,0.00024921,5]
[340474959,1729289443367,-3918.7910805,0.00024921,5]
[340474983,1729289446032,-5187.46778376,0.00024921,5]
[340474986,1729289446044,-2102.1426238,0.00024921,5]
[340474988,1729289446055,-6569.47907139,0.00024921,5]
[340474992,1729289446105,-432.77116256,0.00024921,5]
[340474993,1729289446118,-889.21959213,0.00024921,5]
[340474994,1729289446182,-14109.3827469,0.00024921,5]
[340474995,1729289446192,-151.44,0.00024921,2]
[340474996,1729289446201,-1500.0,0.00024923,2]
[340474997,1729289446210,-579.0,0.00024931,2]
[340474998,1729289446220,-500.0,0.00024931,2]
[340474999,1729289446229,-500.0,0.00024931,2]
[340475000,1729289446239,-500.0,0.00024931,2]
[340475001,1729289446248,-500.0,0.00024931,2]
[340475002,1729289446257,-500.0,0.00024931,2]
[340475003,1729289446266,-500.0,0.00024931,2]
[340475004,1729289446275,-500.0,0.00024931,2]
[340475005,1729289446285,-500.0,0.00024931,2]
[340475006,1729289446294,-500.0,0.00024931,2]
[340475007,1729289446303,-500.0,0.00024931,2]
[340475008,1729289446312,-500.0,0.00024931,2]
[340475009,1729289446322,-500.0,0.00024931,2]
[340475010,1729289446331,-500.0,0.00024931,2]
[340475011,1729289446341,-500.0,0.00024931,2]
[340475012,1729289446351,-500.0,0.00024931,2]
[340475013,1729289446360,-500.0,0.00024931,2]
[340475014,1729289446369,-500.0,0.00024931,2]
[340475015,1729289446378,-500.0,0.00024931,2]
[340475016,1729289446388,-500.0,0.00024931,2]
[340475017,1729289446397,-500.0,0.00024931,2]
[340475018,1729289446407,-500.0,0.00024931,2]
[340475019,1729289446421,-500.0,0.00024931,2]
[340475020,1729289446430,-156.62,0.00024931,2]
[340475021,1729289446439,-500.0,0.00024931,2]
[340475022,1729289446449,-500.0,0.00024931,2]
[340475023,1729289446459,-500.0,0.00024931,2]
[340475024,1729289446468,-500.0,0.00024931,2]
[340475025,1729289446477,-500.0,0.00024931,2]
[340475026,1729289446486,-500.0,0.00024931,2]
[340475027,1729289446496,-500.0,0.00024931,2]
[340475028,1729289446505,-500.0,0.00024931,2]
[340475029,1729289446514,-500.0,0.00024931,2]
[340475030,1729289446523,-500.0,0.00024931,2]
[340475031,1729289446533,-500.0,0.00024931,2]
[340475032,1729289446543,-500.0,0.00024931,2]
[340475033,1729289446552,-500.0,0.00024931,2]
[340475034,1729289446561,-500.0,0.00024931,2]
[340475035,1729289446571,-500.0,0.00024931,2]
[340475036,1729289446580,-500.0,0.00024931,2]
[340475037,1729289446590,-500.0,0.00024931,2]
[340475038,1729289446599,-523.17,0.00024931,2]
[340475039,1729289446608,-523.17,0.00024931,2]
[340475040,1729289446618,-523.17,0.00024931,2]
[340475041,1729289446627,-523.17,0.00024931,2]
[340475042,1729289446636,-523.17,0.00024931,2]
[340475043,1729289446646,-523.17,0.00024931,2]
[340475044,1729289446655,-523.17,0.00024931,2]
[340475045,1729289446664,-543.19,0.00024931,2]
[340475046,1729289446673,-43.42109472,0.00024931,2]
[340475047,1729289446688,-479.74890528,0.00024931,2]
[340475048,1729289446698,-543.19,0.00024931,2]
[340475049,1729289446707,-523.17,0.00024931,2]
[340475050,1729289446717,-543.19,0.00024931,2]
[340475051,1729289446726,-543.19,0.00024931,2]
[340475052,1729289446735,-523.17,0.00024931,2]
[340475053,1729289446744,-543.19,0.00024931,2]
[340475054,1729289446753,-523.17,0.00024931,2]
[340475055,1729289446762,-543.19,0.00024931,2]
[340475056,1729289446771,-523.17,0.00024931,2]
[340475057,1729289446780,-543.19,0.00024931,2]
[340475058,1729289446789,-523.17,0.00024931,2]
[340475059,1729289446799,-543.19,0.00024931,2]
[340475060,1729289446807,-523.17,0.00024931,2]
[340475061,1729289446816,-523.17,0.00024931,2]
[340475062,1729289446825,-523.17,0.00024931,2]
[340475063,1729289446835,-523.17,0.00024931,2]
[340475064,1729289446844,-500.0,0.00024931,2]
[340475065,1729289446853,-500.0,0.00024931,2]
[340475066,1729289446862,-500.0,0.00024931,2]
[340475067,1729289446871,-500.0,0.00024931,2]
[340475068,1729289446879,-500.0,0.00024931,2]
[340475069,1729289446888,-500.0,0.00024931,2]
[340475070,1729289447063,-500.0,0.00024931,2]
[340475071,1729289447072,-500.0,0.00024931,2]
[340475072,1729289447081,-500.0,0.00024931,2]
[340475073,1729289447091,-500.0,0.00024931,2]
[340475074,1729289447099,-500.0,0.00024931,2]
[340475075,1729289447108,-500.0,0.00024931,2]
[340475076,1729289447117,-470.32795774,0.00024931,2]
[340475077,1729289447127,-500.0,0.00024931,2]
[340475078,1729289447136,-500.0,0.00024931,2]
[340475079,1729289447145,-637.05324014,0.00024931,2]
[340475080,1729289447154,-500.0,0.00024931,2]
[340475081,1729289447164,-500.0,0.00024931,2]
[340475082,1729289447173,-500.0,0.00024931,2]
[340475083,1729289447183,-454.64025707,0.00024931,2]
[340475084,1729289447192,-500.0,0.00024931,2]
[340475085,1729289447202,-500.0,0.00024931,2]
[340475086,1729289447211,-500.0,0.00024931,2]
[340475087,1729289447220,-500.0,0.00024931,2]
[340475088,1729289447230,-500.0,0.00024931,2]
[340475089,1729289447239,-223.70584642,0.00024931,2]
[340475090,1729289447250,-500.0,0.00024931,2]
[340475091,1729289447262,-500.0,0.00024931,2]
[340475092,1729289447271,-500.0,0.00024931,2]
[340475093,1729289447281,-524.24022689,0.00024931,2]
[340475094,1729289447290,-586.16,0.00024931,2]
[340475095,1729289447299,-586.16,0.00024931,2]
[340475096,1729289447308,-586.16,0.00024931,2]
[340475097,1729289447317,-586.16,0.00024931,2]
[340475098,1729289447327,-586.16,0.00024931,2]
[340475099,1729289447336,-586.16,0.00024931,2]
[340475100,1729289447346,-586.16,0.00024931,2]
[340475101,1729289447355,-586.16,0.00024931,2]
[340475102,1729289447364,-500.0,0.00024931,2]
[340475103,1729289447374,-421.07546294,0.00024931,2]
[340475104,1729289447384,-151.0,0.00024931,7]
[340475105,1729289447394,-151.0,0.00024931,7]
[340475106,1729289447403,-151.0,0.00024931,7]
[340475107,1729289447416,-500.0,0.00024931,2]
[340475108,1729289447426,-500.0,0.00024931,2]
[340475109,1729289447435,-500.0,0.00024931,2]
[340475110,1729289447443,-500.0,0.00024931,2]
[340475111,1729289447452,-500.0,0.00024931,2]
[340475112,1729289447463,-500.0,0.00024931,2]
[340475113,1729289447472,-500.0,0.00024931,2]
[340475114,1729289447480,-500.0,0.00024931,2]
[340475115,1729289447490,-389.51901921,0.00024931,2]
[340475116,1729289447507,-110.48098079,0.00024931,2]
[340475117,1729289447516,-236.28876278,0.00024931,2]
[340475118,1729289447541,-263.71123722,0.00024931,2]
[340475119,1729289447550,-500.0,0.00024931,2]
[340475120,1729289447559,-500.0,0.00024931,2]
[340475121,1729289447569,-500.0,0.00024931,2]
[340475122,1729289447578,-500.0,0.00024931,2]
[340475123,1729289447588,-500.0,0.00024931,2]
[340475124,1729289447598,-500.0,0.00024931,2]
[340475125,1729289447609,-500.0,0.00024931,2]
[340475126,1729289447618,-500.0,0.00024931,2]
[340475127,1729289447627,-500.0,0.00024931,2]
[340475128,1729289447637,-360.33876278,0.00024931,2]
[340475129,1729289447676,-139.66123722,0.00024931,2]
[340475130,1729289447685,-506.10627076,0.00024931,2]
[340475131,1729289447695,-1063.38,0.00024931,2]
[340475132,1729289447704,-407.81037626,0.00024931,2]
[340475133,1729289447716,-655.56962374,0.00024931,2]
[340475134,1729289447725,-1063.38,0.00024931,2]
[340475135,1729289447734,-1063.38,0.00024931,2]
[340475136,1729289447744,-1063.38,0.00024931,2]
[340475137,1729289447753,-708.10939756,0.00024931,2]
[340475138,1729289447764,-355.27060244,0.00024931,2]
[340475139,1729289447774,-1063.38,0.00024931,2]
[340475140,1729289447783,-1063.38,0.00024931,2]
[340475141,1729289447792,-1391.61,0.00024931,2]
[340475142,1729289447801,-1391.61,0.00024931,2]
[340475143,1729289447810,-535.46659756,0.00024931,2]
[340475144,1729289447822,-593.908839,0.00024931,2]
[340475145,1729289447833,-262.23456344,0.00024931,2]
[340475146,1729289447842,-298.59006562,0.00024931,2]
[340475147,1729289447853,-684.16694247,0.00024931,2]
[340475148,1729289461901,858.4506,0.0001,5]
[340475149,1729289461931,154.41505081,0.0001,5]
[340475150,1729289461967,4833.0,0.0001,5]
[340475151,1729289462000,23650.0,0.0001,5]
[340475152,1729289462032,23547.80674819,0.0001,5]
[340475153,1729290034343,-217.28,0.00022137,30]
[340475154,1729290034371,-217.28,0.00024721,30]
[340475155,1729290034401,-152.74,0.000249,31]
[340475156,1729290034426,-152.74,0.000249,31]
[340475157,1729290034452,-152.74,0.000249,31]
[340475158,1729290034477,-152.74,0.000249,31]
[340475159,1729290034502,-152.74,0.000249,31]
[340475160,1729290034528,-152.74,0.000249,31]
[340475161,1729290034552,-152.74,0.000249,31]
[340475162,1729290034577,-152.74,0.000249,31]
[340475163,1729290034743,-500.0,0.0002646,30]
[340475164,1729290034768,-500.0,0.00026857,30]
[340475165,1729290034792,-366.95638779,0.00027,30]
[340475166,1729290034819,-152.74,0.00027,31]
[340475167,1729290034845,-152.74,0.00027,31]
[340475168,1729290034870,-500.0,0.0002726,30]
[340475169,1729290034894,-217.28,0.00027305,30]
[340475170,1729290034920,-200.0,0.00027397,60]
[340475171,1729290034945,-203.0,0.0002741,30]
[340475172,1729290034974,-612.90946609,0.00027669,30]
[340475173,1729290035004,-500.0,0.00028,120]
[340475174,1729290035028,-181.66509132,0.000281,120]
[340475175,1729290035052,-772.47527403,0.00028297,120]
[340475176,1729290035075,-203.0,0.0002878,30]
[340475177,1729290035098,-176.87984293,0.00029,120]
[340475178,1729290035121,-216.0,0.00029,120]
[340475179,1729290035151,-152.74,0.000292,31]
[340475180,1729290035177,-152.74,0.000292,31]
[340475181,1729290035202,-217.28,0.00029889,30]
[340475182,1729290035227,-800.0,0.0003,120]
[340475183,1729290035430,-620.0,0.0003,30]
[340475184,1729290035456,-919.00719569,0.0003,120]
[340475185,1729290035481,-151.0,0.0003,120]
[340475186,1729290035506,-500.0,0.0003,120]
[340475187,1729290035530,-1000.0,0.000301,30]
[340475188,1729290035553,-200.0,0.00030137,60]
[340475189,1729290035577,-203.0,0.0003015,30]
[340475190,1729290035600,-987.43255808,0.000303,30]
[340475191,1729290035624,-668.0,0.0003063,60]
[340475192,1729290035650,-800.0,0.00031,120]
[340475193,1729290035678,-208.78716614,0.00031,120]
[340475194,1729290035703,-500.0,0.00031,120]
[340475195,1729290035730,-152.74,0.000313,31]
[340475196,1729290035758,-152.74,0.000313,31]
[340475197,1729290035782,-212.47001129,0.000314,30]
[340475198,1729290035806,-203.0,0.0003151,30]
[340475199,1729290035831,-673.21040766,0.00031945,120]
[340475200,1729290035854,-500.0,0.00032,30]
[340475201,1729290035880,-680.01106964,0.00032,30]
[340475202,1729290035904,-500.0,0.00032,30]
[340475203,1729290035930,-916.68247759,0.00032,30]
[340475204,1729290035954,-500.0,0.00032,30]
[340475205,1729290035978,-500.0,0.00032,30]
[340475206,1729290036002,-500.0,0.00032,30]
[340475207,1729290036025,-862.1016372,0.00032,30]
[340475208,1729290036049,-509.99109762,0.00032,30]
[340475209,1729290036073,-1000.0,0.00032,30]
[340475210,1729290036097,-1000.0,0.00032,30]
[340475211,1729290036122,-1000.0,0.00032,30]
[340475212,1729290036146,-1000.0,0.00032,30]
[340475213,1729290036168,-1000.0,0.00032,30]
[340475214,1729290036192,-1000.0,0.00032,30]
[340475215,1729290036215,-500.0,0.00032,30]
[340475216,1729290036240,-500.0,0.00032,30]
[340475217,1729290036264,-1000.0,0.00032,30]
[340475218,1729290036289,-500.0,0.00032,30]
[340475219,1729290036313,-1000.0,0.00032,30]
[340475220,1729290036336,-500.0,0.00032,30]
[340475221,1729290036360,-1000.0,0.00032,30]
[340475222,1729290036385,-500.0,0.00032,30]
[340475223,1729290036408,-511.1118101,0.00032,30]
[340475224,1729290036431,-1000.0,0.00032,30]
[340475225,1729290036455,-544.87509057,0.00032,30]
[340475226,1729290036479,-1000.0,0.00032,30]
[340475227,1729290036502,-500.0,0.00032,30]
[340475228,1729290036526,-1000.0,0.00032,30]
[340475229,1729290036549,-500.0,0.00032,30]
[340475230,1729290036574,-1000.0,0.00032,30]
[340475231,1729290036598,-517.02779115,0.00032,30]
[340475232,1729290036623,-1000.0,0.00032,30]
[340475233,1729290036647,-585.36609935,0.00032,30]
[340475234,1729290036673,-500.0,0.00032,30]
[340475235,1729290036696,-500.0,0.00032,30]
[340475236,1729290036721,-500.0,0.00032,30]
[340475237,1729290036745,-500.0,0.00032,30]
[340475238,1729290036768,-810.53567071,0.00032,30]
[340475239,1729290036792,-700.0,0.00032,30]